{"text_format":"3","workbook":"xlsx","n_sheets":4,"sheets":["Boodschappenlijst","Budgetoverzicht","Takenlijst","Lijst delen"],"not_rendered":{"charts":2,"images":2,"defined_names":12},"read":"whole","date_system":"1900"}

{"sheet":"Boodschappenlijst","index":0,"n_rows":25,"n_cols":8,"rows_kept":25,"merged":[[2,1,2,7],[3,1,3,2]]}
[null,"Terug naar school","planner"]
[]
[null,"Houd de voortgang van uw boodschappen bij en vergelijk deze met de bedragen in de budgetcategorie die in het budgetoverzicht zijn ingevoerd."]
[null,"Budgetoverzicht",null,null,{"$f":"\"Aankoopvoortgang (\"&COUNTIFS(Controlelijst[Gekocht], \">0\")&\" van \"&COUNTIFS(Controlelijst[Kopen], \">0\")&\")\"","v":"Aankoopvoortgang (1 van 6)"}]
[null,"Budget",{"v":1500,"d":"€ 1,500.00"},null,{"$f":"IFERROR(COUNTIFS(Controlelijst[Kopen],\">0\",Controlelijst[Gekocht],\">0\")/SumItemsToBuy,0)","v":{"v":0.16666666666666666,"d":"17%"}}]
[null,"Totaal boodschappenlijst",{"$f":"IFERROR(SUM(ChecklistTotal), \"\")","v":{"v":365,"d":"€ 365.00"}}]
[null,"Resterend bedrag",{"$f":"IFERROR(C5-C6, \"\")","v":{"v":1135,"d":"€ 1,135.00"}}]
[null,"Boodschappenlijst"]
[null,"Artikel","Categorie","Hvh","Kopen","Kosten","Gekocht","Totale kosten"]
[null,"Rekenen","Lesboeken",1,1,{"v":55,"d":"€ 55.00"},1,{"$f":"IFERROR(Controlelijst[[#This Row],[Hvh]]*Controlelijst[[#This Row],[Kosten]], \"\")","v":{"v":55,"d":"€ 55.00"}}]
[null,"Taal","Lesboeken",1,1,null,null,{"$f":"IFERROR(Controlelijst[[#This Row],[Hvh]]*Controlelijst[[#This Row],[Kosten]], \"\")","v":0}]
[null,"Rugzak","Benodigdheden",1,null,{"v":30,"d":"€ 30.00"},null,{"$f":"IFERROR(Controlelijst[[#This Row],[Hvh]]*Controlelijst[[#This Row],[Kosten]], \"\")","v":{"v":30,"d":"€ 30.00"}}]
[null,"Rekenmachine","Benodigdheden",1,{"$nulls":3},{"$f":"IFERROR(Controlelijst[[#This Row],[Hvh]]*Controlelijst[[#This Row],[Kosten]], \"\")","v":0}]
[null,"Markeerstiften","Benodigdheden",3,{"$nulls":3},{"$f":"IFERROR(Controlelijst[[#This Row],[Hvh]]*Controlelijst[[#This Row],[Kosten]], \"\")","v":0}]
[null,"Uniform","Kleding",2,1,{"v":100,"d":"€ 100.00"},null,{"$f":"IFERROR(Controlelijst[[#This Row],[Hvh]]*Controlelijst[[#This Row],[Kosten]], \"\")","v":{"v":200,"d":"€ 200.00"}}]
[null,"Overhemd","Kleding",4,{"$nulls":3},{"$f":"IFERROR(Controlelijst[[#This Row],[Hvh]]*Controlelijst[[#This Row],[Kosten]], \"\")","v":0}]
[null,"Shirt, T-shirts","Kleding",5,{"$nulls":3},{"$f":"IFERROR(Controlelijst[[#This Row],[Hvh]]*Controlelijst[[#This Row],[Kosten]], \"\")","v":0}]
[null,"Korte broeken","Kleding",2,{"$nulls":3},{"$f":"IFERROR(Controlelijst[[#This Row],[Hvh]]*Controlelijst[[#This Row],[Kosten]], \"\")","v":0}]
[null,"Sneakers","Kleding",2,1,null,null,{"$f":"IFERROR(Controlelijst[[#This Row],[Hvh]]*Controlelijst[[#This Row],[Kosten]], \"\")","v":0}]
[null,"Sokken","Kleding",10,{"$nulls":3},{"$f":"IFERROR(Controlelijst[[#This Row],[Hvh]]*Controlelijst[[#This Row],[Kosten]], \"\")","v":0}]
[null,"Zomerjas","Kleding",1,1,{"v":80,"d":"€ 80.00"},null,{"$f":"IFERROR(Controlelijst[[#This Row],[Hvh]]*Controlelijst[[#This Row],[Kosten]], \"\")","v":{"v":80,"d":"€ 80.00"}}]
[null,"Sweaters","Kleding",1,{"$nulls":3},{"$f":"IFERROR(Controlelijst[[#This Row],[Hvh]]*Controlelijst[[#This Row],[Kosten]], \"\")","v":0}]
[null,"Sweatshirts","Kleding",1,{"$nulls":3},{"$f":"IFERROR(Controlelijst[[#This Row],[Hvh]]*Controlelijst[[#This Row],[Kosten]], \"\")","v":0}]
[null,"Ondergoed","Kleding",10,{"$nulls":3},{"$f":"IFERROR(Controlelijst[[#This Row],[Hvh]]*Controlelijst[[#This Row],[Kosten]], \"\")","v":0}]
[null,"Winterjas","Kleding",1,1,null,null,{"$f":"IFERROR(Controlelijst[[#This Row],[Hvh]]*Controlelijst[[#This Row],[Kosten]], \"\")","v":0}]

{"sheet":"Budgetoverzicht","index":1,"n_rows":6,"n_cols":3,"rows_kept":6}
[null,"Budgetoverzicht"]
[null,"Voeg de bij te houden categorieën en budgetbedragen toe aan uw boodschappenlijst."]
[null,"Categorie","Totale kosten"]
[null,"Kleding",{"$f":"IFERROR(SUMIFS(Controlelijst[Totale kosten],Controlelijst[Categorie],Categorie[[#This Row],[Categorie]]), \"\")","v":{"v":280,"d":"€ 280.00"}}]
[null,"Benodigdheden",{"$f":"IFERROR(SUMIFS(Controlelijst[Totale kosten],Controlelijst[Categorie],Categorie[[#This Row],[Categorie]]), \"\")","v":{"v":30,"d":"€ 30.00"}}]
[null,"Lesboeken",{"$f":"IFERROR(SUMIFS(Controlelijst[Totale kosten],Controlelijst[Categorie],Categorie[[#This Row],[Categorie]]), \"\")","v":{"v":55,"d":"€ 55.00"}}]

{"sheet":"Takenlijst","index":2,"n_rows":22,"n_cols":3,"rows_kept":22}
[null,"Takenlijst"]
[null,"Houd alles bij wat u moet doen voor de school weer begint."]
[null,"Gereed","Taak"]
[null,"x","Alle registratieformulieren invullen"]
[null,null,"Indien nodig afspraak maken voor medisch onderzoek en oogonderzoek"]
[null,null,"Alle vereiste inentingen controleren"]
[null,null,"Bij de dokter een briefje halen met doseringsvoorschriften voor alle benodigde medicijnen"]
[null,null,"Kledingvoorschriften school controleren"]
[null,null,"Een lijst met schoolbenodigdheden ophalen"]
[null,null,"Kennismaken met de onderwijzer"]
[null,null,"Communicatiemethode bepalen waaraan onderwijzer de voorkeur geeft (telefoon, e-mail, brief)"]
[null,null,"Met uw kind een rondleiding maken door de school"]
[null,null,"Uw kind helpen uw telefoonnummer thuis en op het werk en uw huisadres uit het hoofd te leren"]
[null,null,"Vervoer regelen, een veilig ontmoetingspunt aanwijzen en de routine oefenen"]
[null,null,"Als het kind lopend naar school gaat: de route een paar keer oefenen met uw kind"]
[null,null,"Bij carpoolen: uw kind voorstellen aan alle deelnemers aan de carpool"]
[null,null,"Met de bus: bushaltes en tijden bepalen"]
[null,null,"Oppas/naschoolse opvang regelen"]
[null,null,"Menu plannen voor ontbijt, snacks op school, lunches en snacks na school"]
[null,null,"Huiswerklocatie en -tijd bepalen"]
[null,null,"Minstens twee weken voordat de school begint een bedtijd instellen"]
[null,null,"Een kalender maken met alle schooluitjes en activiteiten"]

{"sheet":"Lijst delen","index":3,"n_rows":4,"n_cols":5,"rows_kept":4}
[null,"Lijst delen",null,null,"Deel deze lijst met anderen zodat ze eraan kunnen bijdragen. Selecteer Delen in de rechterbovenhoek of druk op Alt en vervolgens op Z gevolgd door S. Sla het bestand op in OneDrive en stuur de koppeling naar uw vrienden."]
[null,"Naam","E-mail","Gedeeld?"]
[null,"Elize Rigter","elize@example.com","Ja"]
[null,"William Reuser","william@example.com","Nee"]